[Event "*** SCC Grand Prix: Titled Tuesday Blitz"]
[Site "Chess.com"]
[Date "2020.10.13"]
[Round "5"]
[White "LiamVrolijk"]
[Black "Tayson_7"]
[Result "1-0"]
[WhiteElo "2839"]
[BlackElo "2604"]
[TimeControl "180+1"]
[EndTime "10:54:01 PDT"]
[Termination "LiamVrolijk won by resignation"]

1. d4 {[%clk 0:02:59.6]} 1... Nf6 {[%clk 0:02:59]} 2. c4 {[%clk 0:02:59.8]} 2...
c5 {[%clk 0:02:55.5]} 3. d5 {[%clk 0:03:00]} 3... e6 {[%clk 0:02:55.2]} 4. Nc3
{[%clk 0:03:00.2]} 4... d6 {[%clk 0:02:55.4]} 5. e4 {[%clk 0:02:59]} 5... g6
{[%clk 0:02:55.6]} 6. Nge2 {[%clk 0:02:59.1]} 6... Bg7 {[%clk 0:02:55.6]} 7. Ng3
{[%clk 0:02:59.1]} 7... O-O {[%clk 0:02:55.2]} 8. Be2 {[%clk 0:02:59.5]} 8...
exd5 {[%clk 0:02:54.5]} 9. cxd5 {[%clk 0:02:59.8]} 9... a6 {[%clk 0:02:55.2]}
10. a4 {[%clk 0:03:00.5]} 10... Nbd7 {[%clk 0:02:54]} 11. O-O {[%clk 0:03:00.6]}
11... Ne8 {[%clk 0:02:54.2]} 12. Be3 {[%clk 0:02:57.2]} 12... Nc7 {[%clk
0:02:53.9]} 13. Qd2 {[%clk 0:02:55.9]} 13... Re8 {[%clk 0:02:52.3]} 14. f4
{[%clk 0:02:53.6]} 14... Rb8 {[%clk 0:02:47.4]} 15. Rab1 {[%clk 0:02:43.3]}
15... b5 {[%clk 0:01:55.6]} 16. axb5 {[%clk 0:02:44.2]} 16... Nxb5 {[%clk
0:01:55.8]} 17. Nxb5 {[%clk 0:02:43.5]} 17... axb5 {[%clk 0:01:55.5]} 18. b4
{[%clk 0:02:44.4]} 18... c4 {[%clk 0:01:53.3]} 19. Bf3 {[%clk 0:02:38.5]} 19...
Bb7 {[%clk 0:01:50.1]} 20. Ne2 {[%clk 0:02:36]} 20... Ra8 {[%clk 0:01:06.7]} 21.
Nc3 {[%clk 0:02:32.9]} 21... Nf6 {[%clk 0:01:05.2]} 22. Bd4 {[%clk 0:02:29.2]}
22... Ra3 {[%clk 0:00:56.6]} 23. Ra1 {[%clk 0:02:16.5]} 23... Rb3 {[%clk
0:00:14.9]} 24. Rfb1 {[%clk 0:02:17.3]} 24... Rxb1+ {[%clk 0:00:12.2]} 25. Rxb1
{[%clk 0:02:18.2]} 25... Ba6 {[%clk 0:00:11.7]} 26. Ra1 {[%clk 0:02:18.1]} 26...
Qc8 {[%clk 0:00:11.9]} 27. Qa2 {[%clk 0:02:15]} 27... Bb7 {[%clk 0:00:10.1]} 28.
Nxb5 {[%clk 0:02:10.8]} 28... Nxe4 {[%clk 0:00:07.7]} 29. Bxg7 {[%clk
0:02:07.6]} 29... Kxg7 {[%clk 0:00:04.5]} 30. Bxe4 {[%clk 0:02:07.4]} 1-0

[Event "*** SCC Grand Prix: Titled Tuesday Blitz"]
[Site "Chess.com"]
[Date "2020.10.13"]
[Round "5"]
[White "SanchezKelvin"]
[Black "poppy73"]
[Result "1-0"]
[WhiteElo "2397"]
[BlackElo "2234"]
[TimeControl "180+1"]
[EndTime "10:54:10 PDT"]
[Termination "SanchezKelvin won on time"]

1. d4 {[%clk 0:02:49]} 1... Nf6 {[%clk 0:02:58.6]} 2. c4 {[%clk 0:02:48.6]} 2...
g6 {[%clk 0:02:58.4]} 3. Nc3 {[%clk 0:02:48.2]} 3... Bg7 {[%clk 0:02:59]} 4. Nf3
{[%clk 0:02:48.4]} 4... d6 {[%clk 0:02:59.5]} 5. e4 {[%clk 0:02:48.5]} 5... O-O
{[%clk 0:02:59.7]} 6. Be2 {[%clk 0:02:49.4]} 6... e5 {[%clk 0:03:00.2]} 7. O-O
{[%clk 0:02:50.3]} 7... Nc6 {[%clk 0:03:00.1]} 8. d5 {[%clk 0:02:50.3]} 8... Ne7
{[%clk 0:03:00.5]} 9. Ne1 {[%clk 0:02:51.2]} 9... Nd7 {[%clk 0:02:58.1]} 10. Nd3
{[%clk 0:02:52.1]} 10... f5 {[%clk 0:02:56.8]} 11. f3 {[%clk 0:02:52.3]} 11...
f4 {[%clk 0:02:55.8]} 12. Bd2 {[%clk 0:02:52.3]} 12... g5 {[%clk 0:02:53.8]} 13.
h3 {[%clk 0:02:52]} 13... Nf6 {[%clk 0:02:45.2]} 14. c5 {[%clk 0:02:51.5]} 14...
Nh5 {[%clk 0:02:35]} 15. cxd6 {[%clk 0:02:52.4]} 15... cxd6 {[%clk 0:02:34.1]}
16. Nf2 {[%clk 0:02:51.3]} 16... Ng3 {[%clk 0:02:30.6]} 17. Re1 {[%clk 0:02:51]}
17... h5 {[%clk 0:02:12.8]} 18. Rc1 {[%clk 0:02:41.8]} 18... Ng6 {[%clk
0:02:07.5]} 19. Nb5 {[%clk 0:02:40]} 19... a6 {[%clk 0:01:55.4]} 20. Nc7 {[%clk
0:02:38.9]} 20... Rb8 {[%clk 0:01:55.6]} 21. Qb3 {[%clk 0:02:37.7]} 21... Nxe2+
{[%clk 0:00:44]} 22. Rxe2 {[%clk 0:02:36.4]} 22... Kh7 {[%clk 0:00:37.9]} 23.
Nxa6 {[%clk 0:02:28.2]} 23... Ra8 {[%clk 0:00:23.1]} 24. Nc7 {[%clk 0:02:27.2]}
24... Rb8 {[%clk 0:00:21.4]} 25. Ne6 {[%clk 0:02:22.1]} 25... Bxe6 {[%clk
0:00:19.5]} 26. dxe6 {[%clk 0:02:23]} 26... Qe7 {[%clk 0:00:12.5]} 27. Bb4
{[%clk 0:02:20.4]} 27... Rfe8 {[%clk 0:00:12]} 28. Rd1 {[%clk 0:02:19.9]} 28...
Rbd8 {[%clk 0:00:11.9]} 29. Red2 {[%clk 0:02:19.5]} 29... Qxe6 {[%clk
0:00:08.6]} 30. Qxe6 {[%clk 0:02:17.7]} 30... Rxe6 {[%clk 0:00:08.6]} 31. Rxd6
{[%clk 0:02:17.6]} 31... Rexd6 {[%clk 0:00:06.4]} 32. Rxd6 {[%clk 0:02:16.4]}
32... Rc8 {[%clk 0:00:06.2]} 33. Bc3 {[%clk 0:02:11.9]} 33... b5 {[%clk
0:00:03.4]} 34. Rb6 {[%clk 0:02:10.9]} 1-0

[Event "*** SCC Grand Prix: Titled Tuesday Blitz"]
[Site "Chess.com"]
[Date "2020.10.13"]
[Round "5"]
[White "PSvidler"]
[Black "Nikolakis2014"]
[Result "1-0"]
[WhiteElo "2907"]
[BlackElo "2735"]
[TimeControl "180+1"]
[EndTime "10:54:16 PDT"]
[Termination "PSvidler won by resignation"]

1. c4 {[%clk 0:03:00.9]} 1... Nf6 {[%clk 0:02:59]} 2. g3 {[%clk 0:03:00.2]} 2...
g6 {[%clk 0:02:57.8]} 3. Bg2 {[%clk 0:03:00]} 3... Bg7 {[%clk 0:02:57.7]} 4. Nc3
{[%clk 0:02:59.5]} 4... O-O {[%clk 0:02:55.9]} 5. d4 {[%clk 0:02:59.3]} 5... d6
{[%clk 0:02:55.8]} 6. Nf3 {[%clk 0:02:57.1]} 6... Nbd7 {[%clk 0:02:55.6]} 7. O-O
{[%clk 0:02:55.8]} 7... e5 {[%clk 0:02:55.4]} 8. b3 {[%clk 0:02:54.7]} 8... exd4
{[%clk 0:02:45.1]} 9. Nxd4 {[%clk 0:02:54.3]} 9... Re8 {[%clk 0:02:45.3]} 10. e4
{[%clk 0:02:40]} 10... Nc5 {[%clk 0:02:43.5]} 11. f3 {[%clk 0:02:39.9]} 11... c6
{[%clk 0:02:36.5]} 12. Re1 {[%clk 0:02:24.3]} 12... a5 {[%clk 0:02:33.7]} 13.
Be3 {[%clk 0:02:23.4]} 13... Qc7 {[%clk 0:02:29.4]} 14. Qd2 {[%clk 0:02:21.5]}
14... Bd7 {[%clk 0:02:24.3]} 15. Rad1 {[%clk 0:02:20.9]} 15... Rad8 {[%clk
0:02:18.6]} 16. Bg5 {[%clk 0:02:20.6]} 16... Ne6 {[%clk 0:02:03.7]} 17. Nxe6
{[%clk 0:02:19.9]} 17... Bxe6 {[%clk 0:02:03.9]} 18. Kh1 {[%clk 0:02:11.9]}
18... Rd7 {[%clk 0:01:52.9]} 19. Ne2 {[%clk 0:02:07.6]} 19... d5 {[%clk
0:01:37.7]} 20. cxd5 {[%clk 0:02:07.5]} 20... cxd5 {[%clk 0:01:37.8]} 21. e5
{[%clk 0:02:08.2]} 21... Qxe5 {[%clk 0:01:20.8]} 22. Bf4 {[%clk 0:02:07.3]}
22... Qh5 {[%clk 0:01:19.9]} 23. g4 {[%clk 0:02:06.3]} 23... Nxg4 {[%clk
0:00:51.8]} 24. fxg4 {[%clk 0:02:06]} 24... Qxg4 {[%clk 0:00:51.8]} 25. Nd4
{[%clk 0:02:03.3]} 25... Qh4 {[%clk 0:00:21.2]} 26. Be5 {[%clk 0:01:56.7]} 26...
Bh3 {[%clk 0:00:17.9]} 27. Bg3 {[%clk 0:01:37.8]} 27... Bxg2+ {[%clk 0:00:16.7]}
28. Kxg2 {[%clk 0:01:37.7]} 28... Rxe1 {[%clk 0:00:16.6]} 29. Bxh4 {[%clk
0:01:36.5]} 29... Re4 {[%clk 0:00:14.4]} 30. Bf2 {[%clk 0:01:36.2]} 1-0

[Event "*** SCC Grand Prix: Titled Tuesday Blitz"]
[Site "Chess.com"]
[Date "2020.10.13"]
[Round "5"]
[White "parintele_chess"]
[Black "barbara25"]
[Result "0-1"]
[WhiteElo "2128"]
[BlackElo "2260"]
[TimeControl "180+1"]
[EndTime "10:54:28 PDT"]
[Termination "barbara25 won by resignation"]

1. e4 {[%clk 0:03:00]} 1... c5 {[%clk 0:02:59.4]} 2. Nc3 {[%clk 0:02:58.7]} 2...
a6 {[%clk 0:02:58.2]} 3. f4 {[%clk 0:02:55]} 3... b5 {[%clk 0:02:57.8]} 4. Nf3
{[%clk 0:02:55.2]} 4... Bb7 {[%clk 0:02:56.2]} 5. d3 {[%clk 0:02:53.8]} 5... e6
{[%clk 0:02:56.3]} 6. g3 {[%clk 0:02:53.9]} 6... Ne7 {[%clk 0:02:56.3]} 7. Bg2
{[%clk 0:02:54]} 7... g6 {[%clk 0:02:56.6]} 8. O-O {[%clk 0:02:53.5]} 8... Bg7
{[%clk 0:02:56.3]} 9. e5 {[%clk 0:02:46.7]} 9... O-O {[%clk 0:02:54.2]} 10. d4
{[%clk 0:02:40.9]} 10... d6 {[%clk 0:02:52.8]} 11. dxc5 {[%clk 0:02:35.1]} 11...
dxc5 {[%clk 0:02:51.9]} 12. Be3 {[%clk 0:02:32.7]} 12... c4 {[%clk 0:02:50.6]}
13. Bc5 {[%clk 0:02:26.2]} 13... Nbc6 {[%clk 0:02:47.8]} 14. Qxd8 {[%clk
0:02:22.1]} 14... Rfxd8 {[%clk 0:02:47]} 15. Rad1 {[%clk 0:02:22.1]} 15... Nd5
{[%clk 0:02:45.2]} 16. Nxd5 {[%clk 0:02:19.1]} 16... exd5 {[%clk 0:02:44.8]} 17.
Nd4 {[%clk 0:02:12.7]} 17... Nxd4 {[%clk 0:02:43.5]} 18. Rxd4 {[%clk 0:02:13.6]}
18... Rac8 {[%clk 0:02:42.7]} 19. Bb4 {[%clk 0:02:01.2]} 19... Bf8 {[%clk
0:02:42.2]} 20. Bxf8 {[%clk 0:02:00.6]} 20... Kxf8 {[%clk 0:02:42]} 21. Rfd1
{[%clk 0:02:00.4]} 21... Rc5 {[%clk 0:02:41.9]} 22. g4 {[%clk 0:01:56.7]} 22...
Ke7 {[%clk 0:02:42]} 23. f5 {[%clk 0:01:56.5]} 23... a5 {[%clk 0:02:40.2]} 24.
f6+ {[%clk 0:01:53]} 24... Ke6 {[%clk 0:02:39.7]} 25. Re1 {[%clk 0:01:53]} 25...
g5 {[%clk 0:02:38.2]} 26. h4 {[%clk 0:01:48]} 26... h6 {[%clk 0:02:38]} 27. Kf2
{[%clk 0:01:39.6]} 27... b4 {[%clk 0:02:37.6]} 28. c3 {[%clk 0:01:37.7]} 28...
Rb5 {[%clk 0:02:34.8]} 29. Rd2 {[%clk 0:01:09.1]} 29... a4 {[%clk 0:02:33.4]}
30. Kg3 {[%clk 0:01:04.1]} 30... Bc6 {[%clk 0:02:26.2]} 31. Bf3 {[%clk
0:00:59.3]} 31... a3 {[%clk 0:02:18]} 32. cxb4 {[%clk 0:00:51.3]} 32... Rxb4
{[%clk 0:02:17.4]} 33. bxa3 {[%clk 0:00:51.4]} 33... Ra4 {[%clk 0:02:17.6]} 34.
hxg5 {[%clk 0:00:43.8]} 34... hxg5 {[%clk 0:02:17.2]} 35. Rh2 {[%clk 0:00:35.5]}
35... Rxa3 {[%clk 0:02:13.3]} 36. Rh5 {[%clk 0:00:29]} 36... d4 {[%clk
0:02:12.2]} 37. Rf1 {[%clk 0:00:28.8]} 37... Bxf3 {[%clk 0:01:58.7]} 38. Rxf3
{[%clk 0:00:28.4]} 38... Rxf3+ {[%clk 0:01:59.1]} 39. Kxf3 {[%clk 0:00:29.3]}
39... d3 {[%clk 0:01:59.4]} 40. Rh1 {[%clk 0:00:18]} 40... d2 {[%clk 0:01:58.4]}
41. Ke2 {[%clk 0:00:17.4]} 41... c3 {[%clk 0:01:58]} 42. Rd1 {[%clk 0:00:18.3]}
42... c2 {[%clk 0:01:58]} 0-1

[Event "*** SCC Grand Prix: Titled Tuesday Blitz"]
[Site "Chess.com"]
[Date "2020.10.13"]
[Round "5"]
[White "GAusal"]
[Black "ZverevLev"]
[Result "1/2-1/2"]
[WhiteElo "2028"]
[BlackElo "2311"]
[TimeControl "180+1"]
[EndTime "10:54:30 PDT"]
[Termination "Game drawn by agreement"]

1. e4 {[%clk 0:03:00.9]} 1... c5 {[%clk 0:02:54.4]} 2. f4 {[%clk 0:02:59.8]}
2... e5 {[%clk 0:02:51.7]} 3. fxe5 {[%clk 0:02:57.2]} 3... Qh4+ {[%clk
0:02:49.6]} 4. Ke2 {[%clk 0:02:51]} 4... Qxe4+ {[%clk 0:02:45.7]} 5. Kf2 {[%clk
0:02:49.8]} 5... c4 {[%clk 0:02:21.2]} 6. Nf3 {[%clk 0:02:48.6]} 6... Bc5+
{[%clk 0:02:18.8]} 7. d4 {[%clk 0:02:40.2]} 7... cxd3+ {[%clk 0:02:17.7]} 8. Kg3
{[%clk 0:02:39.2]} 8... Qg6+ {[%clk 0:01:53.8]} 9. Ng5 {[%clk 0:02:32.4]} 9...
Qf5 {[%clk 0:01:28.7]} 10. Qe1 {[%clk 0:02:21.9]} 10... dxc2 {[%clk 0:01:24.6]}
11. Nc3 {[%clk 0:02:16.6]} 11... Nh6 {[%clk 0:01:21.1]} 12. h3 {[%clk 0:02:13]}
12... O-O {[%clk 0:01:12.3]} 13. Bc4 {[%clk 0:02:09.1]} 13... Nc6 {[%clk
0:01:05.5]} 14. Rf1 {[%clk 0:02:07.9]} 14... Qxe5+ {[%clk 0:01:04.3]} 15. Qxe5
{[%clk 0:01:49.7]} 15... Nxe5 {[%clk 0:01:05.2]} 16. Bb3 {[%clk 0:01:46.4]}
16... d6 {[%clk 0:01:04.1]} 17. Bxc2 {[%clk 0:01:36.5]} 17... g6 {[%clk
0:00:52.2]} 18. Bf4 {[%clk 0:01:30.7]} 18... Bf5 {[%clk 0:00:50.6]} 19. Nge4
{[%clk 0:01:24.9]} 19... Kg7 {[%clk 0:00:41.9]} 20. Nxc5 {[%clk 0:01:20.6]}
20... Bxc2 {[%clk 0:00:41.5]} 21. Nxb7 {[%clk 0:01:16.9]} 21... Nf5+ {[%clk
0:00:40.5]} 22. Kh2 {[%clk 0:01:12.5]} 22... Nd3 {[%clk 0:00:37.2]} 23. Bxd6
{[%clk 0:01:07.4]} 23... Nxd6 {[%clk 0:00:34.6]} 24. Nxd6 {[%clk 0:01:05.2]}
1/2-1/2

[Event "*** SCC Grand Prix: Titled Tuesday Blitz"]
[Site "Chess.com"]
[Date "2020.10.13"]
[Round "5"]
[White "Inga83"]
[Black "gumimis"]
[Result "1-0"]
[WhiteElo "2397"]
[BlackElo "2240"]
[TimeControl "180+1"]
[EndTime "10:54:32 PDT"]
[Termination "Inga83 won by resignation"]

1. d4 {[%clk 0:03:00.9]} 1... Nf6 {[%clk 0:02:57.9]} 2. c4 {[%clk 0:02:59.9]}
2... c5 {[%clk 0:02:57.3]} 3. d5 {[%clk 0:02:59.5]} 3... b5 {[%clk 0:02:56.4]}
4. cxb5 {[%clk 0:02:59.2]} 4... a6 {[%clk 0:02:55.5]} 5. bxa6 {[%clk 0:02:58.8]}
5... Bxa6 {[%clk 0:02:52.7]} 6. Nc3 {[%clk 0:02:57.6]} 6... g6 {[%clk
0:02:50.1]} 7. g3 {[%clk 0:02:57.3]} 7... Bg7 {[%clk 0:02:50.3]} 8. Bg2 {[%clk
0:02:57.8]} 8... O-O {[%clk 0:02:50.7]} 9. Nf3 {[%clk 0:02:58.2]} 9... d6 {[%clk
0:02:47.3]} 10. O-O {[%clk 0:02:58]} 10... Nbd7 {[%clk 0:02:28.7]} 11. Re1
{[%clk 0:02:57]} 11... Nb6 {[%clk 0:02:22.1]} 12. e4 {[%clk 0:02:55.7]} 12...
Nfd7 {[%clk 0:02:18.6]} 13. Bf4 {[%clk 0:02:51.6]} 13... Nc4 {[%clk 0:02:11.1]}
14. Qc2 {[%clk 0:02:51]} 14... Rb8 {[%clk 0:02:10.8]} 15. b3 {[%clk 0:02:48.1]}
15... Na3 {[%clk 0:02:09.2]} 16. Qd2 {[%clk 0:02:45.2]} 16... c4 {[%clk
0:02:00.2]} 17. e5 {[%clk 0:02:41.2]} 17... cxb3 {[%clk 0:01:54.3]} 18. axb3
{[%clk 0:02:39.4]} 18... Rxb3 {[%clk 0:01:52.8]} 19. Nd4 {[%clk 0:02:33.3]}
19... Nc4 {[%clk 0:01:51.1]} 20. Qc1 {[%clk 0:02:25.4]} 20... Nc5 {[%clk
0:01:41.6]} 21. Nc6 {[%clk 0:02:22.7]} 21... Qc7 {[%clk 0:01:29.4]} 22. Rxa6
{[%clk 0:02:12.9]} 22... Nxa6 {[%clk 0:01:27.7]} 23. exd6 {[%clk 0:02:09]} 23...
exd6 {[%clk 0:01:27.5]} 24. Nb5 {[%clk 0:02:01.1]} 24... Rxb5 {[%clk 0:01:18.6]}
25. Qxc4 {[%clk 0:01:57.4]} 25... Rb6 {[%clk 0:01:00.6]} 26. Be3 {[%clk
0:01:43.6]} 26... Nc5 {[%clk 0:00:54.2]} 27. Bxc5 {[%clk 0:01:40.3]} 27... dxc5
{[%clk 0:00:54.8]} 28. Qxc5 {[%clk 0:01:40.2]} 28... Rb2 {[%clk 0:00:44.5]} 29.
Ne7+ {[%clk 0:01:38]} 29... Qxe7 {[%clk 0:00:38.8]} 30. Qxe7 {[%clk 0:01:35.1]}
30... Rfb8 {[%clk 0:00:36.7]} 31. d6 {[%clk 0:01:33.2]} 31... Rb1 {[%clk
0:00:34]} 32. Rxb1 {[%clk 0:01:30.6]} 32... Rxb1+ {[%clk 0:00:34.9]} 33. Bf1
{[%clk 0:01:31.4]} 33... Rd1 {[%clk 0:00:34.1]} 34. d7 {[%clk 0:01:30.7]} 34...
Bf8 {[%clk 0:00:31.7]} 35. d8=Q {[%clk 0:01:28.3]} 35... Rxd8 {[%clk 0:00:30.7]}
36. Qxd8 {[%clk 0:01:27.6]} 1-0

[Event "*** SCC Grand Prix: Titled Tuesday Blitz"]
[Site "Chess.com"]
[Date "2020.10.13"]
[Round "5"]
[White "Sadykov_Ramil"]
[Black "Pashinskiy_Mikhail"]
[Result "0-1"]
[WhiteElo "2532"]
[BlackElo "2356"]
[TimeControl "180+1"]
[EndTime "10:54:34 PDT"]
[Termination "Pashinskiy_Mikhail won by checkmate"]

1. e4 {[%clk 0:02:58.6]} 1... c5 {[%clk 0:02:59.6]} 2. Nf3 {[%clk 0:02:58.8]}
2... Nc6 {[%clk 0:02:59.8]} 3. d4 {[%clk 0:02:59.3]} 3... cxd4 {[%clk
0:02:59.9]} 4. Nxd4 {[%clk 0:03:00.2]} 4... e5 {[%clk 0:03:00.2]} 5. Nb5 {[%clk
0:02:59.8]} 5... a6 {[%clk 0:02:59.5]} 6. Nd6+ {[%clk 0:02:58.6]} 6... Bxd6
{[%clk 0:02:59.2]} 7. Qxd6 {[%clk 0:02:59.5]} 7... Qe7 {[%clk 0:02:58.5]} 8. Qd1
{[%clk 0:02:56.9]} 8... Nf6 {[%clk 0:02:58.2]} 9. Nc3 {[%clk 0:02:54.2]} 9... d6
{[%clk 0:02:58.3]} 10. Bg5 {[%clk 0:02:44.3]} 10... Be6 {[%clk 0:02:56.5]} 11.
Nd5 {[%clk 0:02:42.8]} 11... Bxd5 {[%clk 0:02:56.1]} 12. exd5 {[%clk 0:02:42]}
12... Nb8 {[%clk 0:02:56.3]} 13. c4 {[%clk 0:02:40.3]} 13... Nbd7 {[%clk
0:02:55.9]} 14. Be2 {[%clk 0:02:39.5]} 14... O-O {[%clk 0:02:55.2]} 15. O-O
{[%clk 0:02:36.9]} 15... h6 {[%clk 0:02:55.3]} 16. Be3 {[%clk 0:02:33.1]} 16...
a5 {[%clk 0:02:47.9]} 17. b3 {[%clk 0:02:29.6]} 17... Rfc8 {[%clk 0:02:44.8]}
18. Qd2 {[%clk 0:02:06.5]} 18... Ne4 {[%clk 0:02:43.9]} 19. Qc2 {[%clk
0:02:03.8]} 19... Nec5 {[%clk 0:02:30.4]} 20. Kh1 {[%clk 0:01:49.3]} 20... e4
{[%clk 0:02:29.8]} 21. Bd4 {[%clk 0:01:47.3]} 21... f5 {[%clk 0:02:27.8]} 22.
Rfe1 {[%clk 0:01:45.9]} 22... Ne5 {[%clk 0:02:27.4]} 23. Rad1 {[%clk 0:01:43.2]}
23... Qh4 {[%clk 0:02:18.4]} 24. Qc3 {[%clk 0:01:40.2]} 24... Ncd3 {[%clk
0:02:13.7]} 25. Bxd3 {[%clk 0:01:39.1]} 25... Nxd3 {[%clk 0:02:13.4]} 26. Re2
{[%clk 0:01:30.9]} 26... b5 {[%clk 0:02:09]} 27. Bxg7 {[%clk 0:01:04.6]} 27...
Qg4 {[%clk 0:02:08.4]} 28. Bxh6 {[%clk 0:00:20.4]} 28... Kh7 {[%clk 0:02:02.4]}
29. Red2 {[%clk 0:00:15.2]} 29... Nxf2+ {[%clk 0:01:55]} 30. Kg1 {[%clk
0:00:12.6]} 30... Nxd1 {[%clk 0:01:54.5]} 31. Qf6 {[%clk 0:00:08.7]} 31... Rg8
{[%clk 0:01:45.9]} 32. h3 {[%clk 0:00:07.2]} 32... Qg6 {[%clk 0:01:42.7]} 33.
Qe7+ {[%clk 0:00:03]} 33... Kxh6 {[%clk 0:01:41]} 34. Rxd1 {[%clk 0:00:03.9]}
34... Qxg2# {[%clk 0:01:40.2]} 0-1

[Event "*** SCC Grand Prix: Titled Tuesday Blitz"]
[Site "Chess.com"]
[Date "2020.10.13"]
[Round "5"]
[White "kinga2008"]
[Black "ajdemipopushi"]
[Result "1-0"]
[WhiteElo "2193"]
[BlackElo "2337"]
[TimeControl "180+1"]
[EndTime "10:54:38 PDT"]
[Termination "kinga2008 won by resignation"]

1. e4 {[%clk 0:03:00.9]} 1... c5 {[%clk 0:02:59.3]} 2. Nf3 {[%clk 0:02:39.5]}
2... g6 {[%clk 0:02:59.1]} 3. c3 {[%clk 0:02:36.3]} 3... d5 {[%clk 0:02:58.7]}
4. e5 {[%clk 0:02:31.8]} 4... Nc6 {[%clk 0:02:58.3]} 5. d4 {[%clk 0:02:31.2]}
5... Bg4 {[%clk 0:02:57.8]} 6. Bb5 {[%clk 0:02:26.2]} 6... Qb6 {[%clk
0:02:57.2]} 7. Bxc6+ {[%clk 0:02:23.3]} 7... bxc6 {[%clk 0:02:56.9]} 8. O-O
{[%clk 0:02:16.5]} 8... e6 {[%clk 0:02:56]} 9. Qb3 {[%clk 0:02:01]} 9... Bxf3
{[%clk 0:02:53.6]} 10. Qxb6 {[%clk 0:01:51.9]} 10... axb6 {[%clk 0:02:52.8]} 11.
gxf3 {[%clk 0:01:51.8]} 11... cxd4 {[%clk 0:02:51.7]} 12. cxd4 {[%clk
0:01:52.4]} 12... Ne7 {[%clk 0:02:51.4]} 13. Nc3 {[%clk 0:01:51]} 13... Nf5
{[%clk 0:02:50.1]} 14. Be3 {[%clk 0:01:51.6]} 14... Kd7 {[%clk 0:02:23.6]} 15.
a4 {[%clk 0:01:50.5]} 15... Be7 {[%clk 0:02:06.3]} 16. Rac1 {[%clk 0:01:46.8]}
16... c5 {[%clk 0:02:02.2]} 17. Nb5 {[%clk 0:01:45.3]} 17... Rhc8 {[%clk
0:01:46.9]} 18. b3 {[%clk 0:01:42.7]} 18... c4 {[%clk 0:01:09.8]} 19. bxc4
{[%clk 0:01:37.1]} 19... Rxc4 {[%clk 0:01:09.2]} 20. Rxc4 {[%clk 0:01:35.9]}
20... dxc4 {[%clk 0:01:09.2]} 21. Ra1 {[%clk 0:01:31.6]} 21... Nh4 {[%clk
0:00:58.8]} 22. f4 {[%clk 0:01:29.6]} 22... Nf5 {[%clk 0:00:55.9]} 23. Kf1
{[%clk 0:01:28.4]} 23... h5 {[%clk 0:00:54.2]} 24. Ke2 {[%clk 0:01:28.2]} 24...
Bb4 {[%clk 0:00:51.7]} 25. Bd2 {[%clk 0:01:26.1]} 25... Nxd4+ {[%clk 0:00:49.6]}
26. Nxd4 {[%clk 0:01:18.4]} 26... Bc5 {[%clk 0:00:42.4]} 27. Nc2 {[%clk
0:01:11.5]} 27... Kc6 {[%clk 0:00:39.6]} 28. Be3 {[%clk 0:01:11.7]} 28... Be7
{[%clk 0:00:24.2]} 29. Kd2 {[%clk 0:01:10.8]} 1-0

[Event "*** SCC Grand Prix: Titled Tuesday Blitz"]
[Site "Chess.com"]
[Date "2020.10.13"]
[Round "5"]
[White "Beltsychess"]
[Black "venus02"]
[Result "1/2-1/2"]
[WhiteElo "2630"]
[BlackElo "2489"]
[TimeControl "180+1"]
[EndTime "10:54:42 PDT"]
[Termination "Game drawn by repetition"]

1. d4 {[%clk 0:03:00.9]} 1... Nf6 {[%clk 0:02:58.9]} 2. c4 {[%clk 0:03:00.6]}
2... e6 {[%clk 0:02:59.1]} 3. Nf3 {[%clk 0:03:00.6]} 3... d5 {[%clk 0:02:58.6]}
4. Qc2 {[%clk 0:02:59.7]} 4... Be7 {[%clk 0:02:54.8]} 5. Bg5 {[%clk 0:02:59.2]}
5... O-O {[%clk 0:02:54]} 6. Nc3 {[%clk 0:02:58.6]} 6... Nbd7 {[%clk 0:02:38.1]}
7. e3 {[%clk 0:02:57.7]} 7... c6 {[%clk 0:02:38.2]} 8. O-O-O {[%clk 0:02:55.9]}
8... dxc4 {[%clk 0:02:36.6]} 9. Bxc4 {[%clk 0:02:55.8]} 9... b5 {[%clk
0:02:36.2]} 10. Bd3 {[%clk 0:02:55.9]} 10... Bb7 {[%clk 0:02:35.3]} 11. Kb1
{[%clk 0:02:54.4]} 11... a6 {[%clk 0:02:30.2]} 12. Bxf6 {[%clk 0:02:45.9]} 12...
Nxf6 {[%clk 0:02:29.2]} 13. Ne4 {[%clk 0:02:45.5]} 13... Nxe4 {[%clk 0:02:14.8]}
14. Bxe4 {[%clk 0:02:45]} 14... f5 {[%clk 0:02:05.7]} 15. Bd3 {[%clk 0:02:44.4]}
15... Rc8 {[%clk 0:01:58.2]} 16. Qb3 {[%clk 0:02:39.3]} 16... Qd5 {[%clk
0:01:55.2]} 17. Qxd5 {[%clk 0:02:33.8]} 17... cxd5 {[%clk 0:01:53.9]} 18. Ne5
{[%clk 0:02:30.3]} 18... Bd6 {[%clk 0:01:47.1]} 19. f4 {[%clk 0:01:48.7]} 19...
Rfd8 {[%clk 0:01:35.8]} 20. h3 {[%clk 0:01:39.6]} 20... Rc7 {[%clk 0:01:30.4]}
21. g4 {[%clk 0:01:35.3]} 21... g6 {[%clk 0:01:30.2]} 22. g5 {[%clk 0:01:34.2]}
22... Rdc8 {[%clk 0:01:27.8]} 23. h4 {[%clk 0:01:33.9]} 23... Bxe5 {[%clk
0:01:26.5]} 24. fxe5 {[%clk 0:01:32.4]} 24... Bc6 {[%clk 0:01:26.7]} 25. Rc1
{[%clk 0:01:23.6]} 25... Be8 {[%clk 0:01:25.9]} 26. Rxc7 {[%clk 0:01:23.6]}
26... Rxc7 {[%clk 0:01:26.3]} 27. Rc1 {[%clk 0:01:23.4]} 27... Rxc1+ {[%clk
0:01:24.2]} 28. Kxc1 {[%clk 0:01:23.8]} 28... a5 {[%clk 0:01:22.1]} 29. Kd2
{[%clk 0:01:07.9]} 29... Kg7 {[%clk 0:01:21.4]} 30. Ke2 {[%clk 0:01:07.2]} 30...
h6 {[%clk 0:01:19.9]} 31. Kf3 {[%clk 0:01:05.3]} 31... hxg5 {[%clk 0:01:19.7]}
32. hxg5 {[%clk 0:01:05.7]} 32... Kf8 {[%clk 0:01:20]} 33. a3 {[%clk 0:01:03.4]}
33... Ke7 {[%clk 0:01:11.5]} 34. Ke2 {[%clk 0:00:49.2]} 34... Kd8 {[%clk
0:01:10.5]} 35. Kd2 {[%clk 0:00:48.6]} 35... Kc7 {[%clk 0:01:10.7]} 36. Kc3
{[%clk 0:00:48.3]} 36... Kb6 {[%clk 0:01:10.8]} 37. b4 {[%clk 0:00:46.7]} 37...
a4 {[%clk 0:01:10.2]} 38. Kd2 {[%clk 0:00:45.8]} 38... Kc7 {[%clk 0:01:09.7]}
39. Ke1 {[%clk 0:00:45.5]} 39... Kd8 {[%clk 0:01:09.6]} 40. Kd2 {[%clk
0:00:45.5]} 40... Kc7 {[%clk 0:01:09.6]} 41. Kc3 {[%clk 0:00:45.7]} 41... Kb6
{[%clk 0:01:09.6]} 42. Kd2 {[%clk 0:00:45.8]} 42... Kc7 {[%clk 0:01:09.4]}
1/2-1/2